Cogmind - Beta 13 @@@ ROGUE MODE // 2024.03.31 @ 12:53:42 Player: Scopata Result: Destroyed by P-70 Sage via exploding Fusion Modulator Performance ------------- Evolutions (3) 1500 Regions Visited (4) 800 Robots Destroyed (112) 560 Value Destroyed (3738) 3738 Prototype IDs (15) 300 Alien Tech Used (0) 0 Bonus (134) 134 TOTAL SCORE: 7032 Bonus ------- High Alert Combat Kills 134 Cogmind --------- Core Integrity 0/700 Matter 232/300 Energy 37/150 System Corruption 8% Temperature Cool (12) Movement Core (150) Ox2 Location -7/Factory Parts ------- > --- POWER (1) -------- Micro Nuclear Core > --- PROPULSION (4) --- (None) > --- UTILITY (6) ------ Advanced Visual Processing Unit Target Analyzer Target Analyzer Microactuators > --- WEAPON (2) ------- (None) > --- INVENTORY (5) ---- Light Deuterium Engine Improved Heat Sink Peak State ------------ > --- POWER ------------ Improved Ion Engine > --- PROPULSION ------- Gravmag System Gravmag System Xenon Bombardment Thruster Xenon Bombardment Thruster > --- UTILITY ---------- Improved Heat Sink Coolant Injector Melee Analysis Suite Target Analyzer Target Analyzer Focal Shield > --- WEAPON ----------- Great Axe > --- INVENTORY -------- Micro Nuclear Core VTOL Module VTOL Module [Rating: 43] Favorites ----------- Power Cooled Deuterium Engine Engine Cooled Deuterium Engine Power Core Light Nuclear Core Propulsion Aluminum Leg Treads Light Treads Leg Aluminum Leg Wheel Compact Wheel Hover Unit Gravmag System Flight Unit VTOL Module Utility Melee Analysis Suite Device Improved Heat Sink Storage High-capacity Storage Unit Processor Melee Analysis Suite Hackware Hacking Suite Protection Light Armor Plating Weapon Katana Energy Gun EM Pulse Gun Energy Cannon Light EM Pulse Cannon Ballistic Gun Assault Rifle Ballistic Cannon Light Cannon Launcher Grenade Launcher Impact Weapon Powered Hammer Slashing Weapon Katana Special Melee Weapon Improved Datajack Build | -11 -10 -9 -8 -7 ------- Run | Yrd Mat Mat Mat Fac Slots Evolved 6 | . . 2 2 2 Power . | . . . . . Propulsion 2 | . . . 2 . Utility 4 | . . 2 . 2 Weapon . | . . . . . Parts Attached 172 | 5 24 34 59 50 Power 22 | 1 2 7 7 5 Engine 13 | 1 2 4 4 2 Core 9 | . . 3 3 3 Reactor . | . . . . . Propulsion 51 | 2 4 5 22 18 Treads 5 | . 2 1 1 1 Leg 29 | 2 . 4 18 5 Wheel 7 | . 2 . 3 2 Hover 4 | . . . . 4 Flight 6 | . . . . 6 Utility 48 | . 6 9 14 19 Device 22 | . 1 3 6 12 Storage 3 | . 2 . . 1 Processor 12 | . 1 5 3 3 Hackware 1 | . . . 1 . Protection 10 | . 2 1 4 3 Artifact . | . . . . . Weapon 51 | 2 12 13 16 8 Energy Gun 6 | 1 4 . . 1 Energy Cannon 3 | . . . 2 1 Ballistic Gun 15 | 1 4 5 3 2 Ballistic Cannon 1 | . . 1 . . Launcher 9 | . 4 3 2 . Special Weapon . | . . . . . Impact Weapon 4 | . . . 4 . Slashing Weapon 12 | . . 4 4 4 Piercing Weapon . | . . . . . Special Melee Weapon 1 | . . . 1 . Unidentified Prototypes 3 | . . 1 1 1 Parts Lost 49 | . 1 2 23 23 Power 9 | . . . 5 4 Propulsion 18 | . . . 8 10 Utility 12 | . . 1 6 5 Weapon 10 | . 1 1 4 4 Highest Loss Streak 11 | . 1 1 11 7 To Critical Strikes 1 | . . . . 1 Average Slot Usage (%) 86 | . 96 96 89 58 Engine 7 | . 14 4 5 5 Core 2 | . . 6 3 1 Treads 4 | . 5 12 . . Leg 16 | . 10 9 31 5 Wheel 3 | . 11 . . 4 Device 8 | . 5 13 5 12 Storage 4 | . 12 6 . . Processor 13 | . 2 17 19 8 Hackware 1 | . . . 3 . Protection 4 | . 3 3 4 6 Energy Cannon 1 | . . . 3 . Ballistic Gun 7 | . 15 13 2 1 Launcher 3 | . 11 1 1 . Slashing Weapon 5 | . . 4 7 7 Naked Turns . | . . . . . Heaviest Build 59 | 7 52 59 23 25 Greatest Support 63 | 20 40 40 63 35 Greatest Overweight (x) 6 | . 2 1 5 6 Average Overweight (x) . | . . . . . Largest Inventory Capacity 20 | 5 20 20 5 5 Average Capacity 9 | 5 15 13 5 5 Most Carried 20 | 5 14 20 5 5 Average Carried 6 | 3 8 10 4 4 Final Capacity 20 | 5 20 5 5 5 Final Carried 11 | 4 11 5 5 2 Class Distribution -------------------- 57% | Mutant 37% | Scavenger-Mutant Dominant Class ---------------- Mutant | -10/Materials Mutant | -9/Materials Scavenger-Mutant | -8/Materials Mutant | -7/Factory Resources | -11 -10 -9 -8 -7 ----------- Run | Yrd Mat Mat Mat Fac Matter Collected 2942 | 268 497 1052 590 535 Remotely . | . . . . . Salvage Created 4065 | 45 633 914 1786 687 Parts 214 | 1 42 57 72 42 Haulers Intercepted 2 | . 2 . . . Recyclers Shooed 1 | . . . . 1 Parts Field Recycled . | . . . . . Retrieved Matter . | . . . . . Parts Self-Destructed . | . . . . . Prevented . | . . . . . Kills | -11 -10 -9 -8 -7 ------- Run | Yrd Mat Mat Mat Fac Combat Hostiles Destroyed 89 | 1 17 24 33 14 Melee 48 | . . 4 30 14 Guns 20 | 1 8 9 2 . Cannons 4 | . . 4 . . AOE 16 | . 9 7 . . Classes Destroyed 14 | 1 4 4 4 1 Worker 1 | . . . 1 . Builder 3 | . 1 2 . . Tunneler 2 | . . 1 1 . Hauler 2 | . 2 . . . Mechanic 1 | . . 1 . . Operator 1 | . . . 1 . Watcher 13 | . 3 3 4 3 Swarmer 15 | . 5 3 3 4 Grunt 52 | 1 12 16 19 4 Brawler 1 | . . . 1 . Duelist 2 | . . 1 1 . Sentry 14 | . . 4 8 2 Hunter 1 | . . . 1 . Programmer 4 | . . . . 4 Best Kill Streak 9 | 1 4 9 4 5 Combat Bots Only 7 | 1 3 7 4 4 Max Kills in Single Turn 4 | 1 3 4 1 1 Gunslinging . | . . . . . Exploded 3 | . 2 3 . . Melee 1 | . . 1 1 1 Uniques/NPCs Destroyed . | . . . . . Combat | -11 -10 -9 -8 -7 -------- Run | Yrd Mat Mat Mat Fac Hostile Shots Fired 640 | 8 60 116 246 210 Missed 182 | 2 17 28 74 61 Damage Taken 6391 | 65 455 1001 2540 2330 Core 1437 | . 116 89 477 755 Absorbed by Shields 192 | . . 192 . . Redirected to Shielding 151 | . . . . 151 Ignored by Resistances 196 | . . . 120 76 Regen/Repaired (Parts) 115 | . . 115 . . Core Remaining (%) 60 | 100 53 77 13 . Volleys Fired 139 | 6 51 58 18 6 Largest 2 | 2 2 2 1 1 Hottest 80 | 70 80 60 68 50 Shots Fired 239 | 12 98 105 18 6 Gun 190 | 12 87 75 10 6 Cannon 27 | . . 20 7 . Launcher 22 | . 11 10 1 . Special . | . . . . . Kinetic 179 | 6 64 95 10 4 Thermal 9 | 6 . . 3 . Explosive 21 | . 11 10 . . Electromagnetic 30 | . 23 . 5 2 Robot Hit Streak 18 | 3 6 18 8 12 Robot Miss Streak 7 | 2 7 7 2 3 Penetration Max . | . . . . . Secondary Targets 1 | . 1 . . . Max Gunslinging Chain 1 | . 1 . . . Shots Hit Robots 281 | 8 48 85 96 44 Core Hits 143 | 2 35 46 43 17 Critical Kills . | . . . . . Critical Parts Destroyed 4 | . 2 . 2 . Critical Strikes 14 | . 2 2 8 2 Destroy 2 | . 2 . . . Blast 1 | . . 1 . . Smash 2 | . . . 2 . Sever 9 | . . 1 6 2 Melee Attacks 172 | . . 20 104 48 Impact 14 | . . . 14 . Slashing 156 | . . 20 88 48 Piercing . | . . . . . Sneak Attacks 4 | . . . 3 1 Combat Hostiles 1 | . . . 1 . Follow-up Attacks . | . . . . . Damage Inflicted 8436 | 110 1159 2259 3184 1724 Guns 1680 | 110 563 767 165 75 Cannons 332 | . . 262 70 . Explosions 1290 | . 596 681 13 . Melee 5134 | . . 549 2936 1649 Ramming . | . . . . . Kinetic 1634 | 60 317 1029 165 63 Thermal 95 | 50 25 . 20 . Explosive 1252 | . 571 681 . . Electromagnetic 321 | . 246 . 63 12 Impact 581 | . . . 581 . Slashing 4553 | . . 549 2355 1649 Piercing . | . . . . . Highest Corruption 8 | . . . 1 8 Average Corruption 2 | . . . 1 5 Corruption Purged . | . . . . . Corruption Blocked . | . . . . . Effects 10 | . . . 5 5 Message Errors 2 | . . . . 2 Matter Fused 4 | . . . 3 1 Heat Flow Errors 1 | . . . 1 . Energy Discharges 1 | . . . 1 . Parts Rejected 1 | . . . . 1 Data Loss (minor) 1 | . . . . 1 Overload Shots . | . . . . . Overflow Damage 487 | . . 53 303 131 Projectiles . | . . . . . Explosions 34 | . . 34 . . Melee 453 | . . 19 303 131 Knockbacks 5 | . . 2 3 . Impact 3 | . . . 3 . Kinetic 2 | . . 2 . . Secondary . | . . . . . Self-Inflicted Damage 120 | . 8 62 50 . Shots 6 | . 2 2 2 . Rammed . | . . . . . Targets Rammed . | . . . . . Kicked . | . . . . . Crushed . | . . . . . Highest Temperature 243 | 90 104 226 243 3 Average Temperature 48 | 53 22 75 52 2 Received Heat Transfer 2421 | 36 210 399 1242 534 Siege Activations . | . . . . . Robots Corrupted . | . . . . . Combat Hostiles . | . . . . . Parts Fried 3 | . 1 . 2 . Impact Corruptions 8 | . . . 8 . Robots Melted . | . . . . . Combat Hostiles . | . . . . . Parts Melted . | . . . . . Heat Transferred 235 | 148 50 . 37 . Parts Sabotaged . | . . . . . Parts Stolen . | . . . . . Parts Stripped . | . . . . . Power Chain Reactions 2 | . 1 . 1 . Alert | -11 -10 -9 -8 -7 ------- Run | Yrd Mat Mat Mat Fac Peak Influence 504 | 20 271 451 504 301 Initial 207 | . 13 38 150 207 Average 215 | 8 158 227 282 152 Maximum Alert Level 2 | . 1 2 2 1 Low Security (%) 47 | 100 75 43 24 59 Level 1 41 | . 24 46 49 40 Level 2 11 | . . 9 25 . Level 3 . | . . . . . Level 4 . | . . . . . Level 5 . | . . . . . High Security . | . . . . . Max Security . | . . . . . Squads Dispatched 21 | . 4 3 8 6 Investigation 11 | . 2 2 4 3 Extermination 2 | . . . . 2 Reinforcement 7 | . 2 1 3 1 Assault 1 | . . . 1 . Garrison . | . . . . . Intercept . | . . . . . Searches Triggered . | . . . . . Construction Impeded . | . . . . . Haulers Reinforced . | . . . . . Active Scanning Responses . | . . . . . Cargo Convoy Interrupts . | . . . . . Stealth | -11 -10 -9 -8 -7 --------- Run | Yrd Mat Mat Mat Fac Distress Signals 6 | . 3 2 1 . Communications Jammed . | . . . . . Distress Signals . | . . . . . Times Spotted 158 | 1 29 42 57 29 Peak Tracking Total 8 | 1 7 8 6 5 Tactical Retreats 15 | . . 1 11 3 Traps | -11 -10 -9 -8 -7 ------- Run | Yrd Mat Mat Mat Fac Traps Triggered 2 | . 1 . 1 . Indirectly . | . . . . . Trap Hack Attempts . | . . . . . Triggered . | . . . . . Disarmed . | . . . . . Reprogrammed 6 | . . 6 . . Reused . | . . . . . Traps Extracted . | . . . . . Installed . | . . . . . Triggered 1 | . . . 1 . Machines | -11 -10 -9 -8 -7 ---------- Run | Yrd Mat Mat Mat Fac Machines Disabled 2 | . . 2 . . Max in Single Turn 1 | . . 1 . . Machines Repaired . | . . . . . Machines Dismantled . | . . . . . Machines Sabotaged . | . . . . . Overloaded Fab Kills . | . . . . . Hacking | -11 -10 -9 -8 -7 --------- Run | Yrd Mat Mat Mat Fac Machines Accessed 29 | . 7 8 10 4 Terminals 20 | . 6 5 6 3 Fabricators 1 | . . . . 1 Repair Stations 3 | . 1 2 . . Recycling Units 3 | . . 1 2 . Scanalyzers 2 | . . . 2 . Garrison Access . | . . . . . Total Hacks 102 | . 23 32 34 13 Successful 61 | . 14 20 24 3 Failed 41 | . 9 12 10 10 Catastrophic 8 | . 1 1 3 3 Database Lockouts . | . . . . . Manual 1 | . 1 . . . Terminals 72 | . 20 16 25 11 Fabricators 2 | . . . . 2 Repair Stations 12 | . 3 9 . . Recycling Units 12 | . . 7 5 . Scanalyzers 4 | . . . 4 . Garrison Access . | . . . . . Terminal Hacks 41 | . 13 8 18 2 Record 12 | . 3 1 8 . Prototype ID Bank 7 | . 3 1 2 1 Branch Access Points 1 | . . 1 . . Repair Station Index 1 | . . . 1 . Recycling Unit Index 1 | . . . 1 . Alert Level 5 | . 2 1 2 . Unreport Threat 1 | . . . 1 . Locate Traps 3 | . 1 1 1 . Reprogram Traps 1 | . . 1 . . Dispatch Records 1 | . . 1 . . Maintenance Status 2 | . 2 . . . Reinforcement Status 1 | . . . . 1 Hauler Manifests 2 | . 2 . . . Registered Prototypes 1 | . . . 1 . Zone Layout 2 | . . 1 1 . Fabricator Hacks 1 | . . . . 1 Network Status 1 | . . . . 1 Repair Station Hacks 7 | . 1 6 . . Scan Component 4 | . 1 3 . . Repair 3 | . . 3 . . Recycling Unit Hacks 9 | . . 6 3 . Recycle Component 2 | . . 2 . . Process 3 | . . 3 . . Report Inventory 2 | . . 1 1 . Retrieve Components 2 | . . . 2 . Scanalyzer 3 | . . . 3 . Insert Component 2 | . . . 2 . Analyze 1 | . . . 1 . Garrison Access Hacks . | . . . . . Unauthorized Hacks . | . . . . . Terminals . | . . . . . Fabricators . | . . . . . Repair Stations . | . . . . . Recycling Units . | . . . . . Scanalyzers . | . . . . . Garrison Access . | . . . . . Data Cores Recovered . | . . . . . Used . | . . . . . Hacking Detections 23 | . 4 8 7 4 Full Trace Events 14 | . 2 3 6 3 Feedback Events . | . . . . . Feedback Blocked . | . . . . . Robot Schematics Acquired . | . . . . . Robots Built . | . . . . . Authchips . | . . . . . Time . | . . . . . Total Robot Build Rating . | . . . . . Part Schematics Acquired 1 | . . . 1 . Parts Built . | . . . . . Authchips . | . . . . . Time . | . . . . . Total Part Build Rating . | . . . . . Parts Repaired 3 | . . 3 . . Time 102 | . . 102 . . Parts Recycled 2 | . . 2 . . Recycled Matter 94 | . . 94 . . Retrieved Matter . | . . . . . Retrieved Components 19 | . . . 19 . Parts Scanalyzed 1 | . . . 1 . Part Schematics Acquired 1 | . . . 1 . Parts Damaged . | . . . . . Bothacking | -11 -10 -9 -8 -7 ------------ Run | Yrd Mat Mat Mat Fac Used RIF Installer . | . . . . . Robots Hacked 1 | . . . 1 . Non-combat . | . . . . . Combat 1 | . . . 1 . Robot Hacks Applied 1 | . . . 1 . parse_system 1 | . . . 1 . Relay Couplers Released . | . . . . . Fabnet Peak Effective % . | . . . . . Robots Rewired . | . . . . . Allies Hacked . | . . . . . Hacks Repelled . | . . . . . Allies | -11 -10 -9 -8 -7 -------- Run | Yrd Mat Mat Mat Fac Total Allies . | . . . . . Largest Group . | . . . . . Highest-Rated Group . | . . . . . Highest-Rated Ally . | . . . . . Total Orders . | . . . . . Ally Attacks . | . . . . . Total Damage . | . . . . . Kills . | . . . . . Allies Corrupted . | . . . . . Allies Melted . | . . . . . Intel | -11 -10 -9 -8 -7 ------- Run | Yrd Mat Mat Mat Fac Robot Analysis Total . | . . . . . Derelict Logs Recovered . | . . . . . Drone Launches . | . . . . . Drone Recoveries . | . . . . . Exploration | -11 -10 -9 -8 -7 ------------- Run | Yrd Mat Mat Mat Fac Turns Passed 6828 | 142 1295 1696 2406 1289 Spaces Moved 3918 | 75 786 772 1439 846 Core 44 | 23 . . 10 11 Treads 442 | . 112 310 20 . Legs 2597 | 52 297 462 1398 388 Wheels 655 | . 377 . 11 267 Hover 57 | . . . . 57 Flight 123 | . . . . 123 Fastest Speed 28 | 50 115 130 100 28 Average Speed 134 | 98 135 174 126 114 Slowest Speed 350 | 120 260 240 300 350 Overloaded Moves . | . . . . . Propulsion Burnouts . | . . . . . Robots Hopped . | . . . . . Cave-ins Triggered . | . . . . . Exploration Rate (%) 50 | 6 94 51 76 25 Regions Visited 4 Branch Regions . Pre-discovered Areas . | . . . . . Known Exits Taken 2 | . 1 1 . . Unknown Exits Taken 2 | 1 . . 1 . Scrap Searched . | . . . . . Spaces Dug 9 | . 9 . . . Terrain Destroyed 127 | . 70 45 12 . Melee . | . . . . . Projectile . | . . . . . AOE 127 | . 70 45 12 . Terrain Rammed . | . . . . . Walls Destroyed . | . . . . . Machines Disabled . | . . . . . Actions | -11 -10 -9 -8 -7 --------- Run | Yrd Mat Mat Mat Fac Total 5002 | 130 933 1000 1859 1080 Wait 362 | 38 24 54 162 84 Move 3914 | 74 785 771 1438 846 Hop . | . . . . . Pick Up 112 | 7 28 29 35 13 Fast Attach 57 | 2 . 4 24 27 Attach 58 | 3 6 7 22 20 Detach 24 | . 1 1 12 10 Swap 57 | . 18 23 13 3 Drop 107 | . 20 33 31 23 Fire 139 | 6 51 58 18 6 Melee 172 | . . 20 104 48 Ram . | . . . . . Kick . | . . . . . Crush . | . . . . . Escape Stasis . | . . . . . Rewire . | . . . . . Trap . | . . . . . Miscellaneous . | . . . . . Route ------- -11/Scrapyard -10/Materials (discovered 4 exits: *Mat x3 / [*Min]) -9/Materials (discovered 3 exits: *Mat x2 / *Min) -8/Materials (discovered 5 exits: *Fac x3 / [*Sto x2]) -7/Factory History --------- Turn | Location | Event 2 | -11/Scrapyard | Met Revision 17 64 | -11/Scrapyard | Discovered new exit (range 8) 143 | -11/Scrapyard | Entered Materials 307 | -10/Materials | Discovered new exit (range 15) 337 | -10/Materials | Build established: Mutant 474 | -10/Materials | Discovered new exit (range 16) 554 | -10/Materials | Identified exit to Materials 736 | -10/Materials | Discovered exit to Materials (range 10) 1098 | -10/Materials | Discovered exit to Materials (range 9) 1438 | -10/Materials | Entered another Materials area 1438 | -9/Materials | Evolved 2 slots: Utility x2 1462 | -9/Materials | Identified exit to Mines 1938 | -9/Materials | Discovered new exit (range 15) 2014 | -9/Materials | Build established: Scavenger-Mutant 2189 | -9/Materials | Destroyed 7 combat bots 2346 | -9/Materials | Build established: Mutant 2656 | -9/Materials | Build established: Scavenger-Mutant 2679 | -9/Materials | Repaired Structural Scanner 2717 | -9/Materials | Repaired Titanium Leg? 2979 | -9/Materials | Build established: Mutant 3029 | -9/Materials | Discovered new exit (range 16) 3102 | -9/Materials | Repaired Katana 3133 | -9/Materials | Identified exit to Materials 3134 | -9/Materials | Entered another Materials area 3134 | -8/Materials | Evolved 2 slots: Propulsion x2 3506 | -8/Materials | Lost 3 parts (1p2n) 3622 | -8/Materials | Discovered new exit (range 8) 3627 | -8/Materials | Build established: Scavenger-Mutant 3804 | -8/Materials | Discovered new exit (range 3) 4441 | -8/Materials | Discovered new exit (range 7) 5229 | -8/Materials | Build established: Mutant 5293 | -8/Materials | Core integrity fell below 50% 5344 | -8/Materials | Core integrity fell below 20% 5366 | -8/Materials | Lost 11 parts (2p4n3u2w) 5430 | -8/Materials | Discovered new exit (range 6) 5469 | -8/Materials | Discovered new exit (range 11) 5534 | -8/Materials | First assault squad dispatched 5540 | -8/Materials | Entered Factory 5540 | -7/Factory | Evolved 2 slots: Utility x2 5674 | -7/Factory | Build established: Scavenger-Mutant 6155 | -7/Factory | Build established: Mutant 6442 | -7/Factory | Lost 4 parts (1p1n1u1w) 6507 | -7/Factory | Core integrity fell below 50% 6694 | -7/Factory | Lost 4 parts (1p1n1u1w) 6792 | -7/Factory | Core integrity fell below 20% 6825 | -7/Factory | Lost 7 parts (1p4n2u) 6829 | -7/Factory | Destroyed by P-70 Sage via exploding Fusion Modulator Last Messages --------------- Dispatching Investigation squad. Terminal disabled. Construction Platform disabled. Acquired Adv. Visual Processing Unit. Xenon Bombardment Thruster destroyed. System corrupted: Component data lost. Xenon Bombardment Thruster destroyed. VTOL Module destroyed. Melee Analysis Suite destroyed. Imp. Ion Engine destroyed. K-01 Serf cleans the Matter Pump. Door malfunctions. K-01 Serf cleans the Matter Pump. R Great Axe destroyed. Microactuators destroyed. [Achievement: First Step to Greatness] [Achievement: 5k Club] Map ----- +----------------------------------------------------+ | ????????????????????????# [ ! | | ????????????????????????# ! | | ????????????????????????# !! | | ????????????????????????# ########### #### | | ??????????????+########## ^^ #?#########+#### | | ??????????# # !# | | ??????????# # """" """" # !! | | ???????????" """ """ """ """ # """" """" # !! | | ??????????????"" """ """ """ # """" """" + !! | | ???????????" """ """ """ """ # """" """" # | | ?????????? # # | | ?????????? ################ | | ?????????? | | ?????????? ###### | | ??????????? ????????# | | ???????????? ???????????# | | ????????????????????????# | | ????????????????????????# #################### | | ????????????????????????# # #?????? | | ????????????????????????# # """ """ #?????? | | ????????????????????????# + """ """ #?????? | | ????????????????????????# # """ """ #?????? | | ????????????????????##### # #?????? | | ????????????????????+ ##############?????? | | ????????????????????#######/#######??????????????? | | ?????????????????????# @p #??????????????? | | ?????????????????????# """ #??????????????? | | ?????????????????????# """ #??????????????? | | ?????????????????????# """ #??????????????? | | ?????????????????????# ^ #??????????????? | | ?????????????????????# """ """ #??????????????? | | ?????????????????????# """ """ #??????????????? | | ?????????????????????# """ """ #??????????????? | | ?????????????????????# #??????????????? | | ?????????????????????# #??????????????? | | ?????????????????????# #??????????????? | | ?????????????????????# #??????????????? | | ?????????????????????##############??????????????? | | ?????????????????????????????????????????????????? | | ?????????????????????????????????????????????????? | | ?????????????????????????????????????????????????? | | ?????????????????????????????????????????????????? | | ?????????????????????????????????????????????????? | | ?????????????????????????????????????????????????? | | ?????????????????????????????????????????????????? | | ?????????????????????????????????????????????????? | | ?????????????????????????????????????????????????? | | ?????????????????????????????????????????????????? | | ?????????????????????????????????????????????????? | | ?????????????????????????????????????????????????? | +----------------------------------------------------+ Best States ------------- Heat Dissipation 76 Coolant Potential 65 Energy Generation 18 Energy Capacity 310 Matter Stores 476 Matter Capacity 500 Sight Range 20 Robot Scan Range 15 Terrain Scan Density 110 ECM Strength 2 Additional Mass Support 6 Armor Coverage 150 Resistance: KI 20 Resistance: TH 10 Propulsion Shielding 66 Melee Speed Boost 20 Evasion (%) 64 Melee Accuracy 15 Target Analysis 7 Recoil Reduction 2 Offensive Hacking 10 Item Schematics ----------------- Imp. Heat Sink | -8/Materials | Scanalyzed Robot Schematics ------------------ None Fabricated ------------ Nothing Alien Tech Used ----------------- None Achievements -------------- 5k Club Everything Is Under Control First Step to Greatness Shopping List Universal Adapter Challenges ------------ None Game ------ Seed SniperPulseKit Manual? 0 Play Time 02:48:16 Cumulative 2.7 hours Start 2024.03.31 @ 09:50:51 End 2024.03.31 @ 12:53:42 Sessions 1 Manual Loads 0 Difficulty Rogue Special Mode None Game No. 2 Rogue 1 Adventurer 1 Explorer 0 Win Type - Total 0 Types 0/0/0/0/0/0/0/0/0 Lore% 2 Gallery% 11 Achievement% 10 Wizard Run 0 Options --------- Layout 1 ASCII 0 Keyboard 0 Movement Mouse Keybinds 0 Fullscreen 2 Font 24/Smallcaps Map View 50x35 Zoom Use 0% Tactical HUD 0 Map Filters NONE Filters NONE Steam 1 RUN: b4454367-1497-48fe-91d5-106b293442ef